[Event "Early-Titled-Tuesday-Blitz-March-26-2024"]
[Site "Chess.com"]
[Date "2024.03.26"]
[Round "4"]
[White "Manukyan_Artak"]
[Black "ernestina08chess"]
[Result "1-0"]
[WhiteElo "2467"]
[BlackElo "2234"]
[TimeControl "180+1"]
[EndTime "8:37:26 PDT"]
[Termination "Manukyan_Artak won by resignation"]

1. e4 {[%clk 0:03:00.9]} 1... c5 {[%clk 0:03:00.2]} 2. Nf3 {[%clk 0:03:00.3]}
2... d6 {[%clk 0:03:00.5]} 3. Bb5+ {[%clk 0:02:58.9]} 3... Nd7 {[%clk 0:03:00]}
4. O-O {[%clk 0:02:57.6]} 4... a6 {[%clk 0:02:59.1]} 5. Bd3 {[%clk 0:02:54.8]}
5... Ngf6 {[%clk 0:02:57.4]} 6. Re1 {[%clk 0:02:53.3]} 6... e6 {[%clk
0:02:57.3]} 7. c3 {[%clk 0:02:53.7]} 7... b5 {[%clk 0:02:55.2]} 8. Bc2 {[%clk
0:02:53.9]} 8... Be7 {[%clk 0:02:54.8]} 9. d4 {[%clk 0:02:52.6]} 9... Bb7 {[%clk
0:02:48.3]} 10. e5 {[%clk 0:02:51.5]} 10... dxe5 {[%clk 0:02:47]} 11. dxe5
{[%clk 0:02:52.4]} 11... Nd5 {[%clk 0:02:47.4]} 12. Nbd2 {[%clk 0:02:52.2]}
12... O-O {[%clk 0:02:42.9]} 13. Ne4 {[%clk 0:02:51.9]} 13... c4 {[%clk
0:02:40.1]} 14. Bg5 {[%clk 0:02:48.3]} 14... Re8 {[%clk 0:02:24.4]} 15. Nd6
{[%clk 0:02:44.3]} 15... Bxg5 {[%clk 0:02:18.4]} 16. Nxe8 {[%clk 0:02:41.3]}
16... Qxe8 {[%clk 0:02:11.5]} 17. Nxg5 {[%clk 0:02:41]} 17... g6 {[%clk
0:02:11.8]} 18. Qg4 {[%clk 0:02:32.6]} 18... Kg7 {[%clk 0:01:57.8]} 19. h4
{[%clk 0:02:10.4]} 19... h5 {[%clk 0:01:53.4]} 20. Qg3 {[%clk 0:02:08]} 20... b4
{[%clk 0:01:39.6]} 21. Ne4 {[%clk 0:02:02.4]} 21... Qe7 {[%clk 0:01:31.8]} 22.
Nd6 {[%clk 0:01:48.7]} 22... Bc6 {[%clk 0:01:31.4]} 23. Rad1 {[%clk 0:01:40.4]}
23... bxc3 {[%clk 0:01:25.9]} 24. bxc3 {[%clk 0:01:29.1]} 24... Bb5 {[%clk
0:01:18.4]} 25. a4 {[%clk 0:01:28]} 25... Bc6 {[%clk 0:01:17.5]} 26. Nxc4 {[%clk
0:01:18.8]} 26... Nc5 {[%clk 0:01:13.9]} 27. Ne3 {[%clk 0:01:12.7]} 27... Nxc3
{[%clk 0:01:00.2]} 28. Rc1 {[%clk 0:01:09.3]} 28... N3e4 {[%clk 0:00:57.6]} 29.
Bxe4 {[%clk 0:01:06.2]} 29... Nxe4 {[%clk 0:00:58.5]} 30. Qf4 {[%clk 0:01:04.5]}
30... Bb7 {[%clk 0:00:55.2]} 31. Nc4 {[%clk 0:00:56.9]} 31... Rd8 {[%clk
0:00:51.9]} 32. Rxe4 {[%clk 0:00:48.2]} 32... Bxe4 {[%clk 0:00:50]} 33. Qxe4
{[%clk 0:00:49.1]} 33... Qc5 {[%clk 0:00:48.1]} 34. Qe3 {[%clk 0:00:47.9]} 34...
Qb4 {[%clk 0:00:38.7]} 35. Nd6 {[%clk 0:00:46.1]} 35... Rd7 {[%clk 0:00:34.4]}
36. Ne8+ {[%clk 0:00:37.6]} 36... Kf8 {[%clk 0:00:32]} 37. Nf6 {[%clk
0:00:32.6]} 37... Kg7 {[%clk 0:00:30.9]} 38. Nxd7 {[%clk 0:00:32]} 1-0

[Event "Early-Titled-Tuesday-Blitz-March-26-2024"]
[Site "Chess.com"]
[Date "2024.03.26"]
[Round "4"]
[White "CADMartin"]
[Black "lluiss"]
[Result "1-0"]
[WhiteElo "2468"]
[BlackElo "2221"]
[TimeControl "180+1"]
[EndTime "8:37:27 PDT"]
[Termination "CADMartin won on time"]

1. e4 {[%clk 0:02:43.5]} 1... e6 {[%clk 0:02:58]} 2. d4 {[%clk 0:02:26.3]} 2...
d5 {[%clk 0:02:56.4]} 3. exd5 {[%clk 0:02:27.2]} 3... exd5 {[%clk 0:02:55.9]} 4.
Nf3 {[%clk 0:02:28.1]} 4... Bd6 {[%clk 0:02:53.7]} 5. Bd3 {[%clk 0:02:26.9]}
5... Bg4 {[%clk 0:02:30.1]} 6. h3 {[%clk 0:02:25.7]} 6... Bh5 {[%clk 0:02:25]}
7. O-O {[%clk 0:02:21.5]} 7... Ne7 {[%clk 0:02:19]} 8. Nc3 {[%clk 0:02:17.6]}
8... Bg6 {[%clk 0:02:15.2]} 9. Bg5 {[%clk 0:02:13.2]} 9... f6 {[%clk 0:02:08.2]}
10. Bxg6+ {[%clk 0:02:10]} 10... hxg6 {[%clk 0:02:03.7]} 11. Bd2 {[%clk
0:02:09.7]} 11... c6 {[%clk 0:01:54.6]} 12. Qe2 {[%clk 0:02:09.6]} 12... Qd7
{[%clk 0:01:49.5]} 13. Na4 {[%clk 0:02:05.3]} 13... Na6 {[%clk 0:01:43.6]} 14.
a3 {[%clk 0:02:03.3]} 14... O-O {[%clk 0:01:36.3]} 15. b4 {[%clk 0:02:00.8]}
15... Rfe8 {[%clk 0:01:35.4]} 16. Qd3 {[%clk 0:02:00.4]} 16... Nc7 {[%clk
0:01:33.4]} 17. c4 {[%clk 0:01:58.1]} 17... dxc4 {[%clk 0:01:29.2]} 18. Qxc4+
{[%clk 0:01:59]} 18... Ncd5 {[%clk 0:01:28.9]} 19. Nc5 {[%clk 0:01:59.5]} 19...
Bxc5 {[%clk 0:01:28.1]} 20. dxc5 {[%clk 0:02:00.4]} 20... Kh7 {[%clk 0:01:17.5]}
21. Rad1 {[%clk 0:01:58.7]} 21... Nf5 {[%clk 0:01:15.4]} 22. Rfe1 {[%clk
0:01:54]} 22... Rxe1+ {[%clk 0:01:14.3]} 23. Rxe1 {[%clk 0:01:54.9]} 23... Re8
{[%clk 0:01:14]} 24. Rd1 {[%clk 0:01:46.9]} 24... Qe6 {[%clk 0:01:12.8]} 25. Re1
{[%clk 0:01:42.2]} 25... Qd7 {[%clk 0:01:12.1]} 26. Re4 {[%clk 0:01:40.9]} 26...
Rxe4 {[%clk 0:01:09]} 27. Qxe4 {[%clk 0:01:41.8]} 27... Qe7 {[%clk 0:01:08]} 28.
Qxe7 {[%clk 0:01:41.8]} 28... Ndxe7 {[%clk 0:01:05.8]} 29. g4 {[%clk 0:01:39.7]}
29... Nh6 {[%clk 0:01:04.6]} 30. Nd4 {[%clk 0:01:31.2]} 30... Nf7 {[%clk
0:00:59.8]} 31. Ne6 {[%clk 0:01:31.4]} 31... g5 {[%clk 0:00:53.9]} 32. Kg2
{[%clk 0:01:30]} 32... Nd5 {[%clk 0:00:43.7]} 33. Kf3 {[%clk 0:01:22.7]} 33...
Kg6 {[%clk 0:00:43.7]} 34. Nf8+ {[%clk 0:01:22.1]} 34... Kh6 {[%clk 0:00:41.6]}
35. Ke4 {[%clk 0:01:21.5]} 35... g6 {[%clk 0:00:38.4]} 36. h4 {[%clk 0:01:19.3]}
36... Kg7 {[%clk 0:00:19.9]} 37. Ne6+ {[%clk 0:01:18.1]} 37... Kg8 {[%clk
0:00:19.7]} 38. hxg5 {[%clk 0:01:18.2]} 38... fxg5 {[%clk 0:00:16.6]} 39. Nxg5
{[%clk 0:01:14.1]} 39... Nd8 {[%clk 0:00:16.1]} 40. Ke5 {[%clk 0:01:11.7]} 40...
Nf7+ {[%clk 0:00:14.5]} 41. Ke6 {[%clk 0:01:08.6]} 41... Nd8+ {[%clk 0:00:02.9]}
42. Kd7 {[%clk 0:01:08.5]} 42... Nf7 {[%clk 0:00:03.2]} 43. Nxf7 {[%clk
0:01:06.7]} 43... Kxf7 {[%clk 0:00:04.1]} 44. Kc8 {[%clk 0:01:07.2]} 1-0

[Event "Early-Titled-Tuesday-Blitz-March-26-2024"]
[Site "Chess.com"]
[Date "2024.03.26"]
[Round "4"]
[White "Flaccidmoves"]
[Black "frequentblunders"]
[Result "1-0"]
[WhiteElo "2454"]
[BlackElo "2183"]
[TimeControl "180+1"]
[EndTime "8:37:32 PDT"]
[Termination "Flaccidmoves won on time"]

1. d4 {[%clk 0:03:00.9]} 1... e6 {[%clk 0:02:59.7]} 2. e4 {[%clk 0:03:00.2]}
2... c5 {[%clk 0:03:00.4]} 3. Nc3 {[%clk 0:03:00.8]} 3... cxd4 {[%clk
0:03:00.9]} 4. Qxd4 {[%clk 0:02:51.5]} 4... Nc6 {[%clk 0:03:01.8]} 5. Qe3 {[%clk
0:02:48.7]} 5... Nf6 {[%clk 0:03:02.7]} 6. Bd3 {[%clk 0:02:44.3]} 6... d5 {[%clk
0:03:02.3]} 7. exd5 {[%clk 0:02:44.2]} 7... Nxd5 {[%clk 0:03:02.4]} 8. Nxd5
{[%clk 0:02:41.4]} 8... Qxd5 {[%clk 0:03:03.3]} 9. Nf3 {[%clk 0:02:41.7]} 9...
Bc5 {[%clk 0:03:01.5]} 10. Qf4 {[%clk 0:02:33.5]} 10... e5 {[%clk 0:02:50.9]}
11. Qg5 {[%clk 0:02:33.1]} 11... O-O {[%clk 0:02:45.8]} 12. O-O {[%clk 0:02:21]}
12... Be6 {[%clk 0:02:39.1]} 13. Rd1 {[%clk 0:02:14]} 13... e4 {[%clk
0:02:26.7]} 14. Be2 {[%clk 0:02:14.1]} 14... Qxg5 {[%clk 0:01:20.8]} 15. Nxg5
{[%clk 0:02:15]} 15... Bf5 {[%clk 0:01:19.6]} 16. Rd5 {[%clk 0:02:12.4]} 16...
Nd4 {[%clk 0:01:12.2]} 17. Rxc5 {[%clk 0:02:07.6]} 17... Nxe2+ {[%clk 0:01:11]}
18. Kf1 {[%clk 0:02:08.1]} 18... Bg4 {[%clk 0:00:37.7]} 19. h3 {[%clk
0:02:00.6]} 19... Bh5 {[%clk 0:00:28]} 20. g4 {[%clk 0:01:59.3]} 20... Rac8
{[%clk 0:00:20.3]} 21. Rxc8 {[%clk 0:01:50.3]} 21... Rxc8 {[%clk 0:00:21.2]} 22.
Kxe2 {[%clk 0:01:48.8]} 22... Bg6 {[%clk 0:00:20]} 23. h4 {[%clk 0:01:16.1]}
23... h6 {[%clk 0:00:16.6]} 24. Nh3 {[%clk 0:01:16.7]} 24... Rxc2+ {[%clk
0:00:15.4]} 25. Ke3 {[%clk 0:01:02]} 25... f5 {[%clk 0:00:13.2]} 26. Nf4 {[%clk
0:00:59.4]} 26... Bh7 {[%clk 0:00:09.3]} 27. g5 {[%clk 0:00:59]} 27... hxg5
{[%clk 0:00:04.8]} 28. hxg5 {[%clk 0:00:59.9]} 28... g6 {[%clk 0:00:04.8]} 29.
Bd2 {[%clk 0:00:53.7]} 29... Rxb2 {[%clk 0:00:03.9]} 30. Rc1 {[%clk 0:00:54.3]}
30... Rxa2 {[%clk 0:00:01.9]} 31. Rc8+ {[%clk 0:00:54]} 31... Kg7 {[%clk
0:00:02.1]} 32. Rc7+ {[%clk 0:00:54.4]} 32... Kf8 {[%clk 0:00:02.1]} 33. Rxh7
{[%clk 0:00:53.9]} 33... Ra3+ {[%clk 0:00:02.7]} 34. Kd4 {[%clk 0:00:53.7]}
34... Rf3 {[%clk 0:00:02.9]} 35. Ke5 {[%clk 0:00:52.7]} 35... Rxf2 {[%clk
0:00:02.4]} 36. Bb4+ {[%clk 0:00:52.9]} 36... Ke8 {[%clk 0:00:01.6]} 37. Ne6
{[%clk 0:00:53]} 1-0

[Event "Early-Titled-Tuesday-Blitz-March-26-2024"]
[Site "Chess.com"]
[Date "2024.03.26"]
[Round "4"]
[White "KNVB"]
[Black "Kazmin_Semyon"]
[Result "0-1"]
[WhiteElo "2777"]
[BlackElo "2581"]
[TimeControl "180+1"]
[EndTime "8:37:33 PDT"]
[Termination "Kazmin_Semyon won on time"]

1. e4 {[%clk 0:03:00.9]} 1... e6 {[%clk 0:02:59.8]} 2. f4 {[%clk 0:02:52.9]}
2... d5 {[%clk 0:02:57.6]} 3. Nc3 {[%clk 0:02:53.8]} 3... d4 {[%clk 0:02:53.8]}
4. Nce2 {[%clk 0:02:33.4]} 4... c5 {[%clk 0:02:35]} 5. Ng3 {[%clk 0:02:32.7]}
5... Nc6 {[%clk 0:02:33.6]} 6. Bb5 {[%clk 0:02:23.9]} 6... Qb6 {[%clk
0:02:28.1]} 7. a4 {[%clk 0:02:07]} 7... a6 {[%clk 0:02:27.8]} 8. Bxc6+ {[%clk
0:02:06.4]} 8... Qxc6 {[%clk 0:02:28.7]} 9. d3 {[%clk 0:02:03.4]} 9... Nf6
{[%clk 0:02:25.8]} 10. Nf3 {[%clk 0:02:01.1]} 10... h5 {[%clk 0:02:25.4]} 11. a5
{[%clk 0:01:38.4]} 11... h4 {[%clk 0:02:19.4]} 12. Nf1 {[%clk 0:01:39]} 12... h3
{[%clk 0:02:18]} 13. g3 {[%clk 0:01:39.5]} 13... Ng4 {[%clk 0:02:13.8]} 14. Ne5
{[%clk 0:00:45.7]} 14... Nxe5 {[%clk 0:02:10.9]} 15. fxe5 {[%clk 0:00:46.6]}
15... Qc7 {[%clk 0:01:13.2]} 16. Bf4 {[%clk 0:00:41.3]} 16... Bd7 {[%clk
0:01:13.3]} 17. Nd2 {[%clk 0:00:19.2]} 17... Bb5 {[%clk 0:01:13.4]} 18. b3
{[%clk 0:00:18.9]} 18... Be7 {[%clk 0:01:09.7]} 19. Nf3 {[%clk 0:00:07.8]} 19...
O-O-O {[%clk 0:01:06.6]} 20. Qd2 {[%clk 0:00:02.6]} 20... Qc6 {[%clk 0:00:44.6]}
21. O-O {[%clk 0:00:02.4]} 21... f6 {[%clk 0:00:41.4]} 22. g4 {[%clk 0:00:01.7]}
22... Rdg8 {[%clk 0:00:34.9]} 23. Rae1 {[%clk 0:00:01.3]} 23... Bd8 {[%clk
0:00:29.4]} 24. Bg3 {[%clk 0:00:01.5]} 24... Qe8 {[%clk 0:00:22.9]} 0-1

[Event "Early-Titled-Tuesday-Blitz-March-26-2024"]
[Site "Chess.com"]
[Date "2024.03.26"]
[Round "4"]
[White "TatjanaVasilevich"]
[Black "amylazy"]
[Result "1-0"]
[WhiteElo "2613"]
[BlackElo "2411"]
[TimeControl "180+1"]
[EndTime "8:37:36 PDT"]
[Termination "TatjanaVasilevich won by resignation"]

1. d4 {[%clk 0:03:00.9]} 1... Nf6 {[%clk 0:02:57.4]} 2. c4 {[%clk 0:03:00.2]}
2... g6 {[%clk 0:02:56.6]} 3. Nc3 {[%clk 0:03:00.3]} 3... d5 {[%clk 0:02:55.8]}
4. cxd5 {[%clk 0:02:59.8]} 4... Nxd5 {[%clk 0:02:56.7]} 5. e4 {[%clk 0:02:59.8]}
5... Nxc3 {[%clk 0:02:56.9]} 6. bxc3 {[%clk 0:03:00.7]} 6... Bg7 {[%clk
0:02:57.5]} 7. Nf3 {[%clk 0:03:01.1]} 7... c5 {[%clk 0:02:57.6]} 8. Be2 {[%clk
0:03:02]} 8... Nc6 {[%clk 0:02:57.8]} 9. Be3 {[%clk 0:03:02.1]} 9... O-O {[%clk
0:02:57.1]} 10. O-O {[%clk 0:03:01.7]} 10... cxd4 {[%clk 0:02:53.5]} 11. cxd4
{[%clk 0:03:02.6]} 11... Bg4 {[%clk 0:02:53.4]} 12. d5 {[%clk 0:03:02.4]} 12...
Bxf3 {[%clk 0:02:53.6]} 13. Bxf3 {[%clk 0:03:03.3]} 13... Ne5 {[%clk 0:02:53.6]}
14. Be2 {[%clk 0:03:03.4]} 14... Rc8 {[%clk 0:02:53.4]} 15. Qb3 {[%clk
0:03:03.2]} 15... b6 {[%clk 0:02:52.3]} 16. f4 {[%clk 0:02:59.6]} 16... Nd7
{[%clk 0:02:52.1]} 17. Rac1 {[%clk 0:02:58.6]} 17... Nc5 {[%clk 0:02:41.9]} 18.
Qc4 {[%clk 0:02:35.3]} 18... Qd7 {[%clk 0:02:32.3]} 19. e5 {[%clk 0:01:48.6]}
19... Rfd8 {[%clk 0:02:22.5]} 20. Rfd1 {[%clk 0:01:45.4]} 20... Qf5 {[%clk
0:02:13.1]} 21. g4 {[%clk 0:01:40.2]} 21... Qe4 {[%clk 0:02:12.7]} 22. Qxe4
{[%clk 0:01:18.6]} 22... Nxe4 {[%clk 0:02:12]} 23. Bf3 {[%clk 0:01:01.3]} 23...
Nc3 {[%clk 0:01:54.5]} 24. Rd2 {[%clk 0:00:32.3]} 24... f6 {[%clk 0:01:53.1]}
25. Rdc2 {[%clk 0:00:30.6]} 25... fxe5 {[%clk 0:01:47]} 26. fxe5 {[%clk
0:00:30.3]} 26... Bxe5 {[%clk 0:01:45.4]} 27. Bd2 {[%clk 0:00:30.5]} 27... Ne2+
{[%clk 0:01:24.3]} 28. Bxe2 {[%clk 0:00:29.8]} 28... Rxc2 {[%clk 0:01:23.3]} 29.
Rxc2 {[%clk 0:00:30.7]} 29... Kg7 {[%clk 0:01:23.8]} 30. Bf3 {[%clk 0:00:27.7]}
30... Bd4+ {[%clk 0:01:22.2]} 31. Kg2 {[%clk 0:00:27.8]} 31... Bc5 {[%clk
0:01:21.3]} 32. Bc3+ {[%clk 0:00:27.8]} 32... Kh6 {[%clk 0:01:21.8]} 33. h4
{[%clk 0:00:28]} 33... g5 {[%clk 0:01:18.5]} 34. Bd2 {[%clk 0:00:28]} 34... Kg7
{[%clk 0:01:08.7]} 35. Bxg5 {[%clk 0:00:27.5]} 35... Rf8 {[%clk 0:01:08.1]} 36.
Rxc5 {[%clk 0:00:20.6]} 36... bxc5 {[%clk 0:01:07.5]} 37. Bxe7 {[%clk
0:00:20.7]} 37... Rb8 {[%clk 0:01:06.3]} 38. Bxc5 {[%clk 0:00:19.3]} 38... Rb2+
{[%clk 0:01:05.9]} 39. Kg3 {[%clk 0:00:19.8]} 39... Rxa2 {[%clk 0:01:06.6]} 40.
d6 {[%clk 0:00:20.3]} 40... a5 {[%clk 0:01:04.7]} 41. Bd4+ {[%clk 0:00:17.3]}
41... Kf7 {[%clk 0:01:03.4]} 42. Bd5+ {[%clk 0:00:17.2]} 42... Ke8 {[%clk
0:01:03.2]} 43. Bxa2 {[%clk 0:00:18.1]} 43... Kd7 {[%clk 0:01:03.8]} 44. Bc5
{[%clk 0:00:17]} 1-0

[Event "Early-Titled-Tuesday-Blitz-March-26-2024"]
[Site "Chess.com"]
[Date "2024.03.26"]
[Round "4"]
[White "masnyszachistaaa"]
[Black "GMG"]
[Result "1-0"]
[WhiteElo "2585"]
[BlackElo "2785"]
[TimeControl "180+1"]
[EndTime "8:37:37 PDT"]
[Termination "masnyszachistaaa won on time"]

1. Nf3 {[%clk 0:03:00.9]} 1... d5 {[%clk 0:02:52.7]} 2. g3 {[%clk 0:02:55.3]}
2... c6 {[%clk 0:02:44.5]} 3. Bg2 {[%clk 0:02:54.8]} 3... Bg4 {[%clk 0:02:44.7]}
4. O-O {[%clk 0:02:54.9]} 4... Nd7 {[%clk 0:02:44.5]} 5. d3 {[%clk 0:02:51.6]}
5... e5 {[%clk 0:02:43.5]} 6. Nbd2 {[%clk 0:02:50.7]} 6... Ngf6 {[%clk 0:02:39]}
7. h3 {[%clk 0:02:50.4]} 7... Bh5 {[%clk 0:02:38.6]} 8. e4 {[%clk 0:02:22.9]}
8... dxe4 {[%clk 0:02:37.2]} 9. dxe4 {[%clk 0:02:20.4]} 9... b5 {[%clk
0:02:32.6]} 10. Qe1 {[%clk 0:02:15]} 10... Bc5 {[%clk 0:02:09.2]} 11. Nh4 {[%clk
0:02:14.3]} 11... O-O {[%clk 0:02:04.8]} 12. Nf5 {[%clk 0:02:13.4]} 12... a5
{[%clk 0:02:02.8]} 13. a4 {[%clk 0:02:11.2]} 13... Bg6 {[%clk 0:01:18.2]} 14.
Nb3 {[%clk 0:02:09.7]} 14... Bb6 {[%clk 0:01:18.4]} 15. Qe2 {[%clk 0:02:01]}
15... b4 {[%clk 0:01:14.4]} 16. Rd1 {[%clk 0:01:42.5]} 16... Qc7 {[%clk
0:00:54.6]} 17. Qc4 {[%clk 0:01:40.6]} 17... Bxf5 {[%clk 0:00:50.6]} 18. exf5
{[%clk 0:01:41.5]} 18... Qa7 {[%clk 0:00:51.2]} 19. Rf1 {[%clk 0:01:35]} 19...
Rac8 {[%clk 0:00:27.6]} 20. Bg5 {[%clk 0:01:34.8]} 20... Rfe8 {[%clk 0:00:26.2]}
21. Rae1 {[%clk 0:01:16.6]} 21... h6 {[%clk 0:00:23.2]} 22. Be3 {[%clk
0:01:12.5]} 22... Nd5 {[%clk 0:00:14.7]} 23. Bxd5 {[%clk 0:01:03.7]} 23... cxd5
{[%clk 0:00:11.8]} 24. Qxd5 {[%clk 0:01:04.6]} 24... Rxc2 {[%clk 0:00:10.5]} 25.
Bxb6 {[%clk 0:00:43]} 25... Nxb6 {[%clk 0:00:11.4]} 26. Qb5 {[%clk 0:00:38.6]}
26... Ra8 {[%clk 0:00:09.4]} 27. Qxe5 {[%clk 0:00:28.4]} 27... Nc4 {[%clk
0:00:08.7]} 28. Qe4 {[%clk 0:00:25]} 1-0

[Event "Early-Titled-Tuesday-Blitz-March-26-2024"]
[Site "Chess.com"]
[Date "2024.03.26"]
[Round "4"]
[White "Kacparov"]
[Black "KetiTsatsalashvili"]
[Result "1-0"]
[WhiteElo "2885"]
[BlackElo "2441"]
[TimeControl "180+1"]
[EndTime "8:37:37 PDT"]
[Termination "Kacparov won by checkmate"]

1. e4 {[%clk 0:03:00.9]} 1... c6 {[%clk 0:02:58.5]} 2. d4 {[%clk 0:03:01]} 2...
d5 {[%clk 0:02:58.7]} 3. e5 {[%clk 0:03:01.3]} 3... Bf5 {[%clk 0:02:57.4]} 4.
Nf3 {[%clk 0:03:01.7]} 4... e6 {[%clk 0:02:56.5]} 5. Be2 {[%clk 0:03:01.8]} 5...
c5 {[%clk 0:02:54.9]} 6. Be3 {[%clk 0:03:01.7]} 6... cxd4 {[%clk 0:02:46.3]} 7.
Nxd4 {[%clk 0:03:01.6]} 7... Ne7 {[%clk 0:02:46.2]} 8. O-O {[%clk 0:03:01.2]}
8... Nec6 {[%clk 0:02:35.8]} 9. Nxf5 {[%clk 0:03:00.6]} 9... exf5 {[%clk
0:02:36.7]} 10. f4 {[%clk 0:02:59.3]} 10... d4 {[%clk 0:02:33.2]} 11. Bf2 {[%clk
0:02:59]} 11... Bc5 {[%clk 0:02:30.5]} 12. Nd2 {[%clk 0:02:57.7]} 12... a5
{[%clk 0:02:17.9]} 13. Nf3 {[%clk 0:02:35.5]} 13... O-O {[%clk 0:02:12.4]} 14.
Qd3 {[%clk 0:02:33.2]} 14... Qc8 {[%clk 0:01:54.5]} 15. Rfd1 {[%clk 0:02:30]}
15... Rd8 {[%clk 0:01:47.4]} 16. Qc4 {[%clk 0:02:25.1]} 16... Na6 {[%clk
0:01:14.3]} 17. c3 {[%clk 0:02:17]} 17... d3 {[%clk 0:00:36.7]} 18. Bxd3 {[%clk
0:02:09.7]} 18... Bxf2+ {[%clk 0:00:36.3]} 19. Kxf2 {[%clk 0:02:10.6]} 19... Qc7
{[%clk 0:00:22.2]} 20. Kf1 {[%clk 0:02:00.4]} 20... Rac8 {[%clk 0:00:22]} 21.
Bxf5 {[%clk 0:01:56.6]} 21... Rxd1+ {[%clk 0:00:19.8]} 22. Rxd1 {[%clk
0:01:56.5]} 22... Rd8 {[%clk 0:00:17]} 23. Rxd8+ {[%clk 0:01:56]} 23... Qxd8
{[%clk 0:00:17.9]} 24. Qd3 {[%clk 0:01:54.4]} 24... Qb6 {[%clk 0:00:16.4]} 25.
Bxh7+ {[%clk 0:01:43.6]} 25... Kh8 {[%clk 0:00:16.8]} 26. Ng5 {[%clk 0:01:42.4]}
26... Qc7 {[%clk 0:00:17.3]} 27. Qh3 {[%clk 0:01:37.9]} 27... Nc5 {[%clk
0:00:07.7]} 28. Bc2+ {[%clk 0:01:33.4]} 28... Kg8 {[%clk 0:00:07.8]} 29. Qh7+
{[%clk 0:01:33.5]} 29... Kf8 {[%clk 0:00:08.4]} 30. Qh8+ {[%clk 0:01:33.8]}
30... Ke7 {[%clk 0:00:08.7]} 31. Qxg7 {[%clk 0:01:34.3]} 31... Nd8 {[%clk
0:00:07.7]} 32. Qf6+ {[%clk 0:01:33.9]} 32... Ke8 {[%clk 0:00:08]} 33. h4 {[%clk
0:01:25.5]} 33... Nce6 {[%clk 0:00:08.2]} 34. Bb3 {[%clk 0:01:17.9]} 34... Qb6
{[%clk 0:00:07.7]} 35. Nxe6 {[%clk 0:01:16.9]} 35... Nxe6 {[%clk 0:00:07.3]} 36.
f5 {[%clk 0:01:15.2]} 36... Qb5+ {[%clk 0:00:06]} 37. c4 {[%clk 0:01:13.5]}
37... Qd7 {[%clk 0:00:02.5]} 38. fxe6 {[%clk 0:00:52.5]} 38... Qd3+ {[%clk
0:00:02.4]} 39. Kg1 {[%clk 0:00:52.8]} 39... Qd4+ {[%clk 0:00:02.8]} 40. Qf2
{[%clk 0:00:52.5]} 40... Qxe5 {[%clk 0:00:02.2]} 41. Qxf7+ {[%clk 0:00:51.9]}
41... Kd8 {[%clk 0:00:02.1]} 42. Qd7# {[%clk 0:00:52.1]} 1-0

[Event "Early-Titled-Tuesday-Blitz-March-26-2024"]
[Site "Chess.com"]
[Date "2024.03.26"]
[Round "4"]
[White "AlexanderKing"]
[Black "stasOR4ik"]
[Result "0-1"]
[WhiteElo "2647"]
[BlackElo "2445"]
[TimeControl "180+1"]
[EndTime "8:37:37 PDT"]
[Termination "stasOR4ik won by resignation"]

1. c4 {[%clk 0:03:00.9]} 1... c6 {[%clk 0:02:09.2]} 2. Nf3 {[%clk 0:02:52.5]}
2... d5 {[%clk 0:02:10.1]} 3. d4 {[%clk 0:02:52.7]} 3... Nf6 {[%clk 0:02:09.6]}
4. e3 {[%clk 0:02:53.3]} 4... e6 {[%clk 0:02:08.3]} 5. b3 {[%clk 0:02:53.3]}
5... Ne4 {[%clk 0:02:07.5]} 6. Bd3 {[%clk 0:02:53]} 6... Bb4+ {[%clk 0:02:07.2]}
7. Nbd2 {[%clk 0:02:52.8]} 7... f5 {[%clk 0:02:07.1]} 8. O-O {[%clk 0:02:52.6]}
8... O-O {[%clk 0:02:05.8]} 9. a3 {[%clk 0:02:45.6]} 9... Bd6 {[%clk 0:02:05.5]}
10. Bb2 {[%clk 0:02:40.3]} 10... Nd7 {[%clk 0:02:04.4]} 11. Ne5 {[%clk
0:02:29.5]} 11... Nxe5 {[%clk 0:01:45.3]} 12. dxe5 {[%clk 0:02:29.2]} 12... Bc5
{[%clk 0:01:45.7]} 13. Nf3 {[%clk 0:02:18.8]} 13... a5 {[%clk 0:01:37.6]} 14.
Qe2 {[%clk 0:02:11]} 14... Qe7 {[%clk 0:01:35.8]} 15. Nd4 {[%clk 0:02:05.3]}
15... Bd7 {[%clk 0:01:33.9]} 16. Qc2 {[%clk 0:01:33.9]} 16... Bb6 {[%clk
0:01:25.5]} 17. f3 {[%clk 0:01:15.4]} 17... Ng5 {[%clk 0:01:16.8]} 18. Kh1
{[%clk 0:01:11.3]} 18... f4 {[%clk 0:01:05.4]} 19. Bc1 {[%clk 0:01:03.3]} 19...
fxe3 {[%clk 0:00:32.7]} 20. Bxe3 {[%clk 0:01:04.2]} 20... h6 {[%clk 0:00:30.5]}
21. Nxc6 {[%clk 0:00:57.8]} 21... Bxc6 {[%clk 0:00:28.4]} 22. Bxb6 {[%clk
0:00:58.3]} 22... dxc4 {[%clk 0:00:24.1]} 23. Bxc4 {[%clk 0:00:51.6]} 23... Nxf3
{[%clk 0:00:19.6]} 24. gxf3 {[%clk 0:00:39.7]} 24... Rxf3 {[%clk 0:00:19.6]} 25.
Rxf3 {[%clk 0:00:39.7]} 25... Bxf3+ {[%clk 0:00:20.2]} 26. Kg1 {[%clk
0:00:40.6]} 26... Qg5+ {[%clk 0:00:19.4]} 27. Kf1 {[%clk 0:00:37.3]} 27... Rf8
{[%clk 0:00:19.5]} 28. Bf2 {[%clk 0:00:16.7]} 28... Bg2+ {[%clk 0:00:14]} 29.
Kg1 {[%clk 0:00:13.8]} 29... Be4+ {[%clk 0:00:13.5]} 0-1